[Event "African-ch Open 2019"]
[Site "Hammamet"]
[Date "2019.07.16"]
[Round "7.4"]
[White "Arab, Adlane"]
[Black "Hamdouchi, Hicham"]
[Result "1-0"]
[ECO "A41"]
[WhiteElo "2479"]
[BlackElo "2575"]
[Annotator "ChessBase"]
[PlyCount "75"]
[EventDate "2019.07.09"]
[EventType "swiss"]
[EventCountry "TUN"]
[TimeControl "5400+30"]

1. d4 {[%emt 0:00:00]} d6 {[%emt 0:00:00]} 2. Nf3 {[%emt 0:00:00]} g6 {[%emt 0:00:00]} 3. c4 {[%emt 0:00:43]} Bg7 {[%emt 0:00:00]} 4. Nc3 {[%emt 0:00:09]} Nc6 {[%emt 0:00:28]} 5. h3 {[%emt 0:04:00]} e5 {[%emt 0:03:53]} 6. Bg5 {[%emt 0:02:18]} f6 {[%emt 0:04:21]} 7. Bh4 {[%emt 0:00:08]} g5 {[%emt 0:03:53]} 8. Bg3 {[%emt 0:00:08]} exd4 {[%emt 0:18:35]} 9. Nxd4 {[%emt 0:00:25]} f5 {[%emt 0:00:19]} 10. Nxc6 {[%emt 0:07:15]} bxc6 {[%emt 0:02:13]} 11. e3 {[%emt 0:00:07]} Rb8 {[%emt 0:03:21]} 12. Qd2 {[%emt 0:02:10]} Nf6 {[%emt 0:04:21]} 13. Be2 {[%emt 0:05:00]} O-O {[%emt 0:02:39]} 14. Rb1 {[%emt 0:09:50]} Qe7 {[%emt 0:06:10]} 15. O-O {[%emt 0:11:21]} g4 {[%emt 0:00:33]} 16. f4 {[%emt 0:06:05]} Re8 {[%emt 0:11:02]} 17. Bf2 {[%emt 0:00:26]} Kh8 {[%emt 0:00:28]} 18. hxg4 {[%emt 0:11:41]} fxg4 {[%emt 0:01:25]} 19. e4 {[%emt 0:04:00]} Nxe4 {[%emt 0:06:33]} 20. Nxe4 {[%emt 0:00:06]} Qxe4 {[%emt 0:00:02]} 21. Bd3 {[%emt 0:00:12]} Qe7 {[%emt 0:00:50]} 22. Rfe1 {[%emt 0:00:08]} Qf7 {[%emt 0:00:39]} 23. Rxe8+ {[%emt 0:00:13]} Qxe8 {[%emt 0:00:04]} 24. Bxa7 {[%emt 0:01:14]} Ra8 {[%emt 0:08:36]} 25. Re1 {[%emt 0:05:26]} Qg8 {[%emt 0:01:48]} 26. Bf2 {[%emt 0:03:03]} Be6 {[%emt 0:05:27]} 27. b3 {[%emt 0:05:31]} Bf6 {[%emt 0:00:23]} 28. g3 {[%emt 0:00:18]} Qf7 {[%emt 0:03:12]} 29. a4 {[%emt 0:00:36]} d5 {[%emt 0:00:47]} 30. f5 {[%emt 0:06:33]} Bd7 {[%emt 0:01:32]} 31. c5 {[%emt 0:01:43]} Rb8 {[%emt 0:02:07]} 32. b4 {[%emt 0:01:51]} d4 {[%emt 0:00:06]} 33. Re4 {[%emt 0:02:45]} Bxf5 {[%emt 0:01:19]} 34. Rf4 {[%emt 0:02:34]} Bxd3 {[%emt 0:03:30]} 35. Qxd3 {[%emt 0:00:04]} Rxb4 {[%emt 0:00:14]} 36. Qf5 {[%emt 0:00:07]} Kg7 {[%emt 0:00:19]} 37. Rxg4+ {[%emt 0:00:13]} Kf8 {[%emt 0:00:13]} 38. Qc8+ {[%emt 0:00:07]} 1-0

[Event "African-ch Open 2019"]
[Site "Hammamet"]
[Date "2019.07.16"]
[Round "7.5"]
[White "Oussedik, Mahfoud"]
[Black "Solomon, Kenny"]
[Result "0-1"]
[ECO "E92"]
[WhiteElo "2440"]
[BlackElo "2375"]
[Annotator "ChessBase"]
[PlyCount "86"]
[EventDate "2019.07.09"]
[EventType "swiss"]
[EventCountry "TUN"]
[TimeControl "5400+30"]

1. d4 {[%emt 0:00:00]} Nf6 {[%emt 0:00:00]} 2. c4 {[%emt 0:00:00]} c5 {[%emt 0:00:00]} 3. d5 {[%emt 0:00:00]} g6 {[%emt 0:00:05]} 4. Nc3 {[%emt 0:00:03]} d6 {[%emt 0:00:08]} 5. e4 {[%emt 0:00:05]} Bg7 {[%emt 0:00:17]} 6. Be2 {[%emt 0:00:10]} O-O {[%emt 0:00:35]} 7. Nf3 {[%emt 0:00:03]} e5 {[%emt 0:00:54]} 8. O-O {[%emt 0:00:48]} Ne8 {[%emt 0:00:05]} 9. Ne1 {[%emt 0:02:11]} f5 {[%emt 0:00:05]} 10. f3 {[%emt 0:00:19]} Nd7 {[%emt 0:03:10]} 11. Nd3 {[%emt 0:01:05]} f4 {[%emt 0:04:12]} 12. a3 {[%emt 0:05:50]} Ndf6 {[%emt 0:00:10]} 13. b4 {[%emt 0:02:06]} b6 {[%emt 0:00:01]} 14. bxc5 {[%emt 0:09:00]} bxc5 {[%emt 0:01:07]} 15. Rb1 {[%emt 0:00:56]} Nh5 {[%emt 0:00:22]} 16. Nf2 {[%emt 0:02:17]} Bf6 {[%emt 0:08:58]} 17. Bd2 {[%emt 0:01:16]} Bh4 {[%emt 0:00:25]} 18. Be1 {[%emt 0:06:37]} Neg7 {[%emt 0:49:15]} 19. Nh1 {[%emt 0:03:51]} Bxe1 {[%emt 0:01:48]} 20. Qxe1 {[%emt 0:00:28]} g5 {[%emt 0:01:41]} 21. Qd2 {[%emt 0:03:31]} Nf6 {[%emt 0:00:59]} 22. g4 {[%emt 0:02:44]} fxg3 {[%emt 0:00:54]} 23. hxg3 {[%emt 0:00:04]} Nfh5 {[%emt 0:02:06]} 24. Rf2 {[%emt 0:18:06]} Qf6 {[%emt 0:06:59]} 25. Rh2 {[%emt 0:02:14]} Qg6 {[%emt 0:01:12]} 26. Nf2 {[%emt 0:00:30]} Nxg3 {[%emt 0:00:47]} 27. Rg2 {[%emt 0:01:08]} Nxe2+ {[%emt 0:00:59]} 28. Nxe2 {[%emt 0:01:11]} h6 {[%emt 0:03:00]} 29. Rb3 {[%emt 0:02:30]} Ba6 {[%emt 0:02:22]} 30. Qc3 {[%emt 0:01:54]} Rf7 {[%emt 0:01:42]} 31. Ng4 {[%emt 0:03:43]} Raf8 {[%emt 0:00:35]} 32. Nh2 {[%emt 0:00:04]} Nh5 {[%emt 0:01:50]} 33. Rf2 {[%emt 0:00:39]} Kh7 {[%emt 0:00:53]} 34. Rg2 {[%emt 0:01:06]} Bc8 {[%emt 0:03:38]} 35. Rb8 {[%emt 0:05:05]} Bh3 {[%emt 0:00:19]} 36. Rxf8 {[%emt 0:00:20]} Rxf8 {[%emt 0:00:02]} 37. Rf2 {[%emt 0:00:10]} Rf7 {[%emt 0:02:34]} 38. Qd3 {[%emt 0:04:02]} Rg7 {[%emt 0:02:03]} 39. Qb1 {[%emt 0:03:43]} Rf7 {[%emt 0:01:50]} 40. Qb8 {[%emt 0:00:00]} Qf6 {[%emt 0:00:00]} 41. Nf1 {[%emt 0:00:00]} g4 {[%emt 0:00:00]} 42. Nfg3 {[%emt 0:00:00]} Nxg3 {[%emt 0:00:00]} 43. Nxg3 {[%emt 0:00:00]} gxf3 {[%emt 0:00:00]} 0-1

[Event "African-ch Open 2019"]
[Site "Hammamet"]
[Date "2019.07.16"]
[Round "8.3"]
[White "Solomon, Kenny"]
[Black "Bellahcene, Bilel"]
[Result "0-1"]
[ECO "E14"]
[WhiteElo "2375"]
[BlackElo "2541"]
[Annotator "RC"]
[PlyCount "58"]
[EventDate "2019.07.09"]
[EventType "swiss"]
[EventCountry "TUN"]
[SourceTitle "playchess.com"]
[Source "ChessBase"]
[SourceQuality "1"]
[TimeControl "5400+30"]

1. d4 {[%emt 0:00:00]} Nf6 {[%emt 0:01:40]} 2. c4 {[%emt 0:00:00]} e6 {[%emt 0:00:03]} 3. Nf3 {[%emt 0:00:00]} Bb4+ {[%emt 0:00:03]} 4. Nbd2 {[%emt 0:01:45]} b6 {[%emt 0:00:08]} 5. e3 {[%emt 0:06:51]} Bb7 {[%emt 0:00:15]} 6. Bd3 {[%emt 0:00:52]} O-O {[%emt 0:01:11]} 7. O-O {[%emt 0:01:04]} d5 {[%emt 0:03:09]} 8. a3 {[%emt 0:02:03]} Bxd2 {[%emt 0:04:33]} 9. Bxd2 {[%emt 0:00:22]} Nbd7 {[%emt 0:00:49]} 10. Rc1 {[%emt 0:25:37]} dxc4 {[%emt 0:04:24]} 11. Bxc4 {[%emt 0:00:07]} Ne4 {[%emt 0:00:23]} 12. Bb4 {[%emt 0:10:49]} c5 {[%emt 0:04:02]} 13. dxc5 {[%emt 0:00:01]} bxc5 {[%emt 0:00:06]} 14. Be1 {[%emt 0:00:05]} Qe7 {[%emt 0:06:12]} 15. Ba5 {[%emt 0:04:52]} Rab8 {[%emt 0:05:32]} 16. b4 {[%emt 0:11:54]} Nb6 {[%emt 0:18:22]} 17. Be2 {[%emt 0:07:56]} Rfd8 {[%emt 0:03:34]} 18. Qe1 {[%emt 0:00:29]} Rdc8 {[%emt 0:03:26]} 19. Nd2 {[%emt 0:08:11]} Qg5 {[%emt 0:20:57]} 20. Nf3 {[%emt 0:08:56]} Qf6 {[%emt 0:00:07]} 21. bxc5 {[%emt 0:00:14]} Na4 {[%emt 0:00:07]} 22. c6 {[%emt 0:00:37]} Rxc6 {[%emt 0:01:40]} 23. Qb4 {[%emt 0:01:28]} Nec3 {[%emt 0:03:43]} 24. Rce1 {[%emt 0:02:26]} e5 {[%emt 0:05:27]} 25. Kh1 {[%emt 0:01:59]} Rcc8 {[%emt 0:00:44]} 26. Qg4 {[%emt 0:00:49]} Nxe2 {[%emt 0:00:21]} 27. Rxe2 {[%emt 0:00:43]} Ba6 {[%emt 0:00:07]} 28. Ree1 {[%emt 0:00:15]} Bxf1 {[%emt 0:00:19]} 29. Rxf1 {[%emt 0:00:01]} Qa6 {[%emt 0:00:15]} 0-1

[Event "African-ch Open 2019"]
[Site "Hammamet"]
[Date "2019.07.16"]
[Round "8.4"]
[White "El Gindy, Essam"]
[Black "Kayonde, Andrew"]
[Result "1-0"]
[ECO "B18"]
[WhiteElo "2423"]
[BlackElo "2382"]
[Annotator "NA"]
[PlyCount "77"]
[EventDate "2019.07.09"]
[EventType "swiss"]
[EventCountry "TUN"]
[SourceTitle "playchess.com"]
[Source "ChessBase"]
[SourceQuality "1"]
[TimeControl "5400+30"]

1. e4 {[%emt 0:00:00]} c6 {[%emt 0:00:25]} 2. d4 {[%emt 0:00:00]} d5 {[%emt 0:00:09]} 3. Nc3 {[%emt 0:00:00]} dxe4 {[%emt 0:00:52]} 4. Nxe4 {[%emt 0:00:00]} Bf5 {[%emt 0:00:09]} 5. Ng3 {[%emt 0:00:00]} Bg6 {[%emt 0:00:08]} 6. h4 {[%emt 0:00:00]} h6 {[%emt 0:00:41]} 7. Nh3 {[%emt 0:00:03]} e6 {[%emt 0:00:54]} 8. Nf4 {[%emt 0:00:11]} Bh7 {[%emt 0:00:08]} 9. c3 {[%emt 0:05:20]} Nf6 {[%emt 0:00:19]} 10. Bc4 {[%emt 0:00:00]} Bd6 {[%emt 0:08:04]} 11. Ngh5 {[%emt 0:00:01]} O-O {[%emt 0:00:43]} 12. g4 {[%emt 0:00:44]} Nxh5 {[%emt 0:43:07]} 13. Nxh5 {[%emt 0:02:27]} Be4 {[%emt 0:00:04]} 14. f3 {[%emt 0:03:00]} Bg6 {[%emt 0:00:06]} 15. Nf4 {[%emt 0:02:11]} Bh7 {[%emt 0:00:07]} 16. Be3 {[%emt 0:02:17]} Nd7 {[%emt 0:01:57]} 17. Qd2 {[%emt 0:00:38]} e5 {[%emt 0:00:09]} 18. Ne2 {[%emt 0:21:46]} exd4 {[%emt 0:02:07]} 19. cxd4 {[%emt 0:01:39]} Nb6 {[%emt 0:04:23]} 20. Bb3 {[%emt 0:01:13]} Qe7 {[%emt 0:02:44]} 21. Kf2 {[%emt 0:00:19]} c5 {[%emt 0:00:28]} 22. dxc5 {[%emt 0:03:07]} Bxc5 {[%emt 0:00:10]} 23. Bxc5 {[%emt 0:01:46]} Qxc5+ {[%emt 0:00:04]} 24. Qe3 {[%emt 0:00:09]} Qxe3+ {[%emt 0:02:26]} 25. Kxe3 {[%emt 0:00:13]} Rfe8+ {[%emt 0:00:03]} 26. Kf2 {[%emt 0:00:19]} Bd3 {[%emt 0:00:06]} 27. Nf4 {[%emt 0:01:35]} Bc4 {[%emt 0:00:25]} 28. Bxc4 {[%emt 0:01:58]} Nxc4 {[%emt 0:00:05]} 29. b3 {[%emt 0:03:14]} Ne5 {[%emt 0:00:05]} 30. h5 {[%emt 0:00:45]} a5 {[%emt 0:03:17]} 31. Rhd1 {[%emt 0:03:56]} a4 {[%emt 0:00:29]} 32. Nd5 {[%emt 0:01:38]} Ra5 {[%emt 0:00:06]} 33. b4 {[%emt 0:01:02]} Ra7 {[%emt 0:00:06]} 34. Rac1 {[%emt 0:01:10]} b5 {[%emt 0:23:13]} 35. Rc5 {[%emt 0:03:28]} Rd7 {[%emt 0:00:17]} 36. Kg3 {[%emt 0:05:43]} Kf8 {[%emt 0:00:40]} 37. Re1 {[%emt 0:14:21]} Rb7 {[%emt 0:03:53]} 38. Nc7 {[%emt 0:00:00]} Re7 {[%emt 0:00:00]} 39. Nxb5 {[%emt 0:00:00]} 1-0

[Event "African-ch Open 2019"]
[Site "Hammamet"]
[Date "2019.07.17"]
[Round "9.3"]
[White "Bellahcene, Bilel"]
[Black "El Gindy, Essam"]
[Result "0-1"]
[ECO "B33"]
[WhiteElo "2541"]
[BlackElo "2423"]
[Annotator "ChessBase"]
[PlyCount "194"]
[EventDate "2019.07.09"]
[EventType "swiss"]
[EventCountry "TUN"]
[SourceTitle "playchess.com"]
[Source "ChessBase"]
[SourceQuality "1"]
[TimeControl "5400+30"]

1. e4 {[%emt 0:01:52]} c5 {[%emt 0:00:00]} 2. Nf3 {[%emt 0:00:03]} Nc6 {[%emt 0:00:00]} 3. d4 {[%emt 0:00:02]} cxd4 {[%emt 0:00:00]} 4. Nxd4 {[%emt 0:00:01]} Qb6 {[%emt 0:00:10]} 5. Nb3 {[%emt 0:00:06]} Nf6 {[%emt 0:00:07]} 6. Nc3 {[%emt 0:00:03]} e6 {[%emt 0:00:04]} 7. Be3 {[%emt 0:00:29]} Qc7 {[%emt 0:00:11]} 8. Qe2 {[%emt 0:00:14]} Bb4 {[%emt 0:01:15]} 9. Bd2 {[%emt 0:01:01]} O-O {[%emt 0:03:18]} 10. Nb5 {[%emt 0:12:39]} Qe5 {[%emt 0:09:24]} 11. c3 {[%emt 0:01:41]} Be7 {[%emt 0:00:12]} 12. f3 {[%emt 0:00:01]} a6 {[%emt 0:05:51]} 13. N5d4 {[%emt 0:00:09]} d5 {[%emt 0:00:14]} 14. exd5 {[%emt 0:02:10]} Qxd5 {[%emt 0:01:40]} 15. Nxc6 {[%emt 0:05:06]} Qxc6 {[%emt 0:00:29]} 16. g3 {[%emt 0:06:03]} e5 {[%emt 0:03:47]} 17. Bg2 {[%emt 0:00:28]} Re8 {[%emt 0:00:21]} 18. O-O {[%emt 0:02:54]} Be6 {[%emt 0:02:05]} 19. Rfe1 {[%emt 0:04:40]} Bxb3 {[%emt 0:03:58]} 20. axb3 {[%emt 0:00:01]} Qb6+ {[%emt 0:00:04]} 21. Be3 {[%emt 0:01:37]} Qxb3 {[%emt 0:00:20]} 22. Bf2 {[%emt 0:00:05]} Bf8 {[%emt 0:01:28]} 23. Ra5 {[%emt 0:01:26]} Rad8 {[%emt 0:01:31]} 24. Rc1 {[%emt 0:11:11]} h6 {[%emt 0:02:30]} 25. h4 {[%emt 0:00:39]} Bd6 {[%emt 0:00:59]} 26. Qc2 {[%emt 0:01:54]} Qxc2 {[%emt 0:04:52]} 27. Rxc2 {[%emt 0:00:02]} Bc7 {[%emt 0:00:44]} 28. Ra1 {[%emt 0:02:01]} Rd3 {[%emt 0:01:30]} 29. Re1 {[%emt 0:04:54]} Red8 {[%emt 0:01:17]} 30. Rce2 {[%emt 0:02:25]} Rd2 {[%emt 0:00:39]} 31. Kf1 {[%emt 0:00:16]} R2d3 {[%emt 0:02:09]} 32. Re3 {[%emt 0:00:32]} R3d7 {[%emt 0:02:15]} 33. Bh3 {[%emt 0:01:25]} Rd2 {[%emt 0:04:29]} 34. R3e2 {[%emt 0:00:41]} a5 {[%emt 0:00:55]} 35. Bf5 {[%emt 0:00:43]} b6 {[%emt 0:01:13]} 36. Rxd2 {[%emt 0:02:36]} Rxd2 {[%emt 0:00:04]} 37. Re2 {[%emt 0:00:00]} Rd1+ {[%emt 0:01:02]} 38. Re1 {[%emt 0:00:03]} Rxe1+ {[%emt 0:02:15]} 39. Kxe1 {[%emt 0:00:15]} Ne8 {[%emt 0:00:19]} 40. Be4 {[%emt 0:00:00]} Kf8 {[%emt 0:00:00]} 41. Ke2 {[%emt 0:00:00]} Ke7 {[%emt 0:00:00]} 42. g4 {[%emt 0:00:00]} Nf6 {[%emt 0:00:00]} 43. Bb7 {[%emt 0:00:00]} h5 {[%emt 0:00:00]} 44. gxh5 {[%emt 0:00:00]} Nxh5 {[%emt 0:00:00]} 45. Kd3 {[%emt 0:00:00]} b5 {[%emt 0:00:00]} 46. b4 {[%emt 0:00:00]} Nf4+ {[%emt 0:00:00]} 47. Kc2 {[%emt 0:00:00]} axb4 {[%emt 0:00:00]} 48. cxb4 {[%emt 0:00:00]} Bd6 {[%emt 0:00:00]} 49. Bc6 {[%emt 0:00:00]} Bxb4 {[%emt 0:00:00]} 50. Bxb5 {[%emt 0:00:00]} Kf6 {[%emt 0:00:00]} 51. Bc4 {[%emt 0:00:00]} g6 {[%emt 0:00:00]} 52. Kd1 {[%emt 0:00:00]} Bc3 {[%emt 0:00:00]} 53. Be3 {[%emt 0:00:00]} Nh5 {[%emt 0:00:00]} 54. Ke2 {[%emt 0:00:00]} Ng3+ {[%emt 0:00:00]} 55. Kd3 {[%emt 0:00:00]} Be1 {[%emt 0:00:00]} 56. Bb6 {[%emt 0:01:40]} Nf5 {[%emt 0:01:31]} 57. Bd8+ {[%emt 0:00:44]} Kg7 {[%emt 0:00:13]} 58. Bc7 {[%emt 0:00:02]} f6 {[%emt 0:05:38]} 59. h5 {[%emt 0:00:34]} gxh5 {[%emt 0:07:31]} 60. f4 {[%emt 0:00:08]} exf4 {[%emt 0:00:57]} 61. Bxf4 {[%emt 0:00:42]} Kg6 {[%emt 0:01:34]} 62. Ke4 {[%emt 0:00:21]} Bh4 {[%emt 0:02:00]} 63. Bd3 {[%emt 0:03:24]} Ng7 {[%emt 0:01:43]} 64. Kf3+ {[%emt 0:00:05]} f5 {[%emt 0:00:13]} 65. Bb5 {[%emt 0:00:03]} Bg5 {[%emt 0:00:42]} 66. Be5 {[%emt 0:00:33]} Bf6 {[%emt 0:01:42]} 67. Bd6 {[%emt 0:00:01]} Ne6 {[%emt 0:01:32]} 68. Bd7 {[%emt 0:02:04]} Nd4+ {[%emt 0:00:33]} 69. Kg3 {[%emt 0:00:21]} h4+ {[%emt 0:00:24]} 70. Kh3 {[%emt 0:00:11]} Nf3 {[%emt 0:02:23]} 71. Bf4 {[%emt 0:03:02]} Bg5 {[%emt 0:01:46]} 72. Bc7 {[%emt 0:00:52]} Ng1+ {[%emt 0:00:56]} 73. Kg2 {[%emt 0:00:21]} Ne2 {[%emt 0:01:58]} 74. Be8+ {[%emt 0:00:31]} Kg7 {[%emt 0:02:06]} 75. Bd7 {[%emt 0:00:45]} Kf6 {[%emt 0:00:20]} 76. Bd8+ {[%emt 0:00:45]} Kg6 {[%emt 0:00:04]} 77. Be8+ {[%emt 0:00:04]} Kh6 {[%emt 0:00:04]} 78. Bc7 {[%emt 0:01:03]} Bf6 {[%emt 0:01:22]} 79. Bb5 {[%emt 0:10:39]} Nc3 {[%emt 0:00:14]} 80. Bc4 {[%emt 0:01:18]} Kg5 {[%emt 0:01:58]} 81. Kf3 {[%emt 0:00:06]} Ne4 {[%emt 0:01:50]} 82. Bf7 {[%emt 0:01:52]} Nd2+ {[%emt 0:03:49]} 83. Ke2 {[%emt 0:01:54]} Bc3 {[%emt 0:00:12]} 84. Bd8+ {[%emt 0:00:47]} Kg4 {[%emt 0:00:25]} 85. Bd5 {[%emt 0:07:08]} h3 {[%emt 0:01:46]} 86. Bb6 {[%emt 0:01:13]} Ne4 {[%emt 0:00:33]} 87. Bxe4 {[%emt 0:02:18]} fxe4 {[%emt 0:00:20]} 88. Kf2 {[%emt 0:00:05]} Be1+ {[%emt 0:02:00]} 89. Kg1 {[%emt 0:01:13]} Bg3 {[%emt 0:00:11]} 90. Kh1 {[%emt 0:01:51]} Kf3 {[%emt 0:00:25]} 91. Bc5 {[%emt 0:02:12]} Bf2 {[%emt 0:00:14]} 92. Bb4 {[%emt 0:00:06]} e3 {[%emt 0:00:08]} 93. Kh2 {[%emt 0:00:06]} Kg4 {[%emt 0:00:06]} 94. Bc5 {[%emt 0:02:13]} Bg3+ {[%emt 0:00:06]} 95. Kg1 {[%emt 0:00:12]} e2 {[%emt 0:00:09]} 96. Bb4 {[%emt 0:00:04]} Kf3 {[%emt 0:00:11]} 97. Ba5 {[%emt 0:01:38]} Ke3 {[%emt 0:02:35] Kf1} 0-1

[Event "African-ch Open 2019"]
[Site "Hammamet"]
[Date "2019.07.17"]
[Round "9.4"]
[White "Zaibi, Amir"]
[Black "Arab, Adlane"]
[Result "0-1"]
[ECO "E08"]
[WhiteElo "2378"]
[BlackElo "2479"]
[Annotator "ChessBase"]
[PlyCount "111"]
[EventDate "2019.07.09"]
[EventType "swiss"]
[EventCountry "TUN"]
[SourceTitle "playchess.com"]
[Source "ChessBase"]
[SourceQuality "1"]
[TimeControl "5400+30"]

1. d4 {[%emt 0:00:22]} Nf6 {[%emt 0:00:25]} 2. Nf3 {[%emt 0:00:36]} e6 {[%emt 0:00:03]} 3. c4 {[%emt 0:01:10]} d5 {[%emt 0:00:41]} 4. g3 {[%emt 0:00:12]} Bb4+ {[%emt 0:00:45]} 5. Bd2 {[%emt 0:00:12]} Be7 {[%emt 0:00:06]} 6. Bg2 {[%emt 0:00:05]} O-O {[%emt 0:00:23]} 7. O-O {[%emt 0:00:30]} Nbd7 {[%emt 0:00:36]} 8. Qc2 {[%emt 0:01:30]} c6 {[%emt 0:02:16]} 9. Rd1 {[%emt 0:00:55]} b6 {[%emt 0:01:57]} 10. cxd5 {[%emt 0:02:23]} cxd5 {[%emt 0:02:31]} 11. Nc3 {[%emt 0:00:49]} Bb7 {[%emt 0:06:29]} 12. Bf4 {[%emt 0:08:33]} Rc8 {[%emt 0:00:51]} 13. Qb3 {[%emt 0:11:08]} a6 {[%emt 0:09:03]} 14. a4 {[%emt 0:04:37]} Ne4 {[%emt 0:07:42]} 15. Rac1 {[%emt 0:00:52]} Nd6 {[%emt 0:06:54]} 16. Qa2 {[%emt 0:07:17]} Nf6 {[%emt 0:09:56]} 17. Ne5 {[%emt 0:04:31]} h6 {[%emt 0:03:14]} 18. Nd3 {[%emt 0:06:56]} Nf5 {[%emt 0:09:01]} 19. Be5 {[%emt 0:04:00]} Nd7 {[%emt 0:03:20]} 20. Bh3 {[%emt 0:02:02]} Nxe5 {[%emt 0:01:51]} 21. Nxe5 {[%emt 0:01:16]} Nd6 {[%emt 0:01:07]} 22. e3 {[%emt 0:02:12]} Nc4 {[%emt 0:02:44]} 23. Nxc4 {[%emt 0:03:08]} Rxc4 {[%emt 0:00:06]} 24. Bf1 {[%emt 0:00:49]} Rc7 {[%emt 0:00:29]} 25. Ne2 {[%emt 0:02:28]} Bd6 {[%emt 0:04:43]} 26. Qb3 {[%emt 0:04:14]} Rxc1 {[%emt 0:03:30]} 27. Rxc1 {[%emt 0:00:50]} g5 {[%emt 0:00:22]} 28. Qd1 {[%emt 0:08:48]} Kg7 {[%emt 0:00:55]} 29. Rc2 {[%emt 0:05:10]} Qd7 {[%emt 0:02:31]} 30. b3 {[%emt 0:01:57]} Qe7 {[%emt 0:01:51]} 31. f4 {[%emt 0:01:56]} f6 {[%emt 0:04:33]} 32. g4 {[%emt 0:03:39]} f5 {[%emt 0:01:43]} 33. Ng3 {[%emt 0:01:15]} gxf4 {[%emt 0:01:41]} 34. exf4 {[%emt 0:00:17]} Kh8 {[%emt 0:00:23]} 35. gxf5 {[%emt 0:05:14]} exf5 {[%emt 0:01:39]} 36. Re2 {[%emt 0:04:38]} Qh4 {[%emt 0:01:55]} 37. Re6 {[%emt 0:00:18]} Bxf4 {[%emt 0:02:04]} 38. Qh5 {[%emt 0:00:35]} Qg5 {[%emt 0:02:53]} 39. Qxg5 {[%emt 0:01:31]} hxg5 {[%emt 0:00:07]} 40. Nh5 {[%emt 0:00:00]} Bd2 {[%emt 0:00:00]} 41. Rh6+ {[%emt 0:00:00]} Kg8 {[%emt 0:00:00]} 42. Rg6+ {[%emt 0:00:00]} Kh7 {[%emt 0:00:00]} 43. Rxb6 {[%emt 0:00:00]} Be3+ {[%emt 0:00:00]} 44. Kg2 {[%emt 0:00:00]} Ba8 {[%emt 0:00:00]} 45. Rxa6 {[%emt 0:00:00]} Bxd4 {[%emt 0:00:00]} 46. Bd3 {[%emt 0:00:00]} Bb7 {[%emt 0:00:00]} 47. Rd6 {[%emt 0:00:00]} Bc8 {[%emt 0:00:00]} 48. a5 {[%emt 0:00:00]} Kg8 {[%emt 0:00:00]} 49. a6 {[%emt 0:00:00]} f4 {[%emt 0:00:00]} 50. Rxd5 {[%emt 0:00:54]} f3+ {[%emt 0:00:00]} 51. Kg3 {[%emt 0:00:24]} Be3 {[%emt 0:00:00]} 52. Re5 {[%emt 0:02:48]} Bd2 {[%emt 0:00:00]} 53. Kf2 {[%emt 0:02:42]} Kh8 {[%emt 0:02:35]} 54. a7 {[%emt 0:00:45]} Bb7 {[%emt 0:01:03]} 55. Rb5 {[%emt 0:01:07]} Ba8 {[%emt 0:00:06]} 56. Rb8 {[%emt 0:00:09]} 0-1

[Event "African-ch Open 2019"]
[Site "Hammamet"]
[Date "2019.07.17"]
[Round "9.5"]
[White "Elarabi, Abobker Mohamed"]
[Black "Balogun, Oluwafemi"]
[Result "1-0"]
[ECO "E62"]
[WhiteElo "2312"]
[BlackElo "2279"]
[Annotator "NA"]
[PlyCount "83"]
[EventDate "2019.07.09"]
[EventType "swiss"]
[EventCountry "TUN"]
[SourceTitle "playchess.com"]
[Source "ChessBase"]
[SourceQuality "1"]
[TimeControl "5400+30"]

1. d4 {[%emt 0:00:00]} Nf6 {[%emt 0:04:23]} 2. Nf3 {[%emt 0:00:56]} g6 {[%emt 0:00:36]} 3. g3 {[%emt 0:00:00]} Bg7 {[%emt 0:00:59]} 4. Bg2 {[%emt 0:00:00]} c6 {[%emt 0:00:47]} 5. O-O {[%emt 0:04:14]} O-O {[%emt 0:00:58]} 6. c4 {[%emt 0:00:52]} d6 {[%emt 0:02:45]} 7. Nc3 {[%emt 0:00:21]} Qa5 {[%emt 0:00:59]} 8. h3 {[%emt 0:03:13]} e5 {[%emt 0:03:32]} 9. dxe5 {[%emt 0:06:05]} dxe5 {[%emt 0:00:00]} 10. a3 {[%emt 0:00:47]} Rd8 {[%emt 0:00:00]} 11. Qc2 {[%emt 0:00:31]} Bf5 {[%emt 0:05:45]} 12. e4 {[%emt 0:01:17]} Be6 {[%emt 0:00:15]} 13. b4 {[%emt 0:00:41]} Qc7 {[%emt 0:01:40]} 14. c5 {[%emt 0:00:08]} b6 {[%emt 0:02:24]} 15. Be3 {[%emt 0:00:47]} bxc5 {[%emt 0:05:49]} 16. Bxc5 {[%emt 0:00:15]} Nbd7 {[%emt 0:00:16]} 17. Be3 {[%emt 0:00:39]} Nb6 {[%emt 0:03:37]} 18. Nd2 {[%emt 0:01:59]} Qd7 {[%emt 0:12:31]} 19. Kh2 {[%emt 0:00:41]} Qd3 {[%emt 0:05:13]} 20. Qb2 {[%emt 0:01:04]} Nc4 {[%emt 0:11:42]} 21. Nxc4 {[%emt 0:00:39]} Qxc4 {[%emt 0:00:03]} 22. Rfc1 {[%emt 0:06:14]} Qb3 {[%emt 0:02:00]} 23. Qxb3 {[%emt 0:00:25]} Bxb3 {[%emt 0:00:03]} 24. Bf1 {[%emt 0:00:02]} Nd7 {[%emt 0:05:46]} 25. Rab1 {[%emt 0:00:39]} Be6 {[%emt 0:00:10]} 26. Na4 {[%emt 0:00:43]} a5 {[%emt 0:08:44]} 27. Nb6 {[%emt 0:03:29]} Nxb6 {[%emt 0:00:03]} 28. Bxb6 {[%emt 0:00:02]} Rd2 {[%emt 0:00:11]} 29. bxa5 {[%emt 0:00:49]} c5 {[%emt 0:04:09]} 30. Bxc5 {[%emt 0:00:57]} Bf8 {[%emt 0:01:39]} 31. Be3 {[%emt 0:05:56]} Ra2 {[%emt 0:00:57]} 32. a6 {[%emt 0:00:41]} Bxa3 {[%emt 0:00:43]} 33. Rc6 {[%emt 0:00:39]} Bb2 {[%emt 0:03:10]} 34. a7 {[%emt 0:02:03]} Kg7 {[%emt 0:00:19]} 35. Rc2 {[%emt 0:04:09]} Bd4 {[%emt 0:00:22]} 36. Rxa2 {[%emt 0:00:46]} Bxa2 {[%emt 0:00:16]} 37. Rb7 {[%emt 0:00:48]} Kf6 {[%emt 0:02:09]} 38. Bb5 {[%emt 0:02:47]} Ke6 {[%emt 0:00:56]} 39. Rd7 {[%emt 0:03:51]} Bxe3 {[%emt 0:12:28]} 40. fxe3 {[%emt 0:00:00]} Bb1 {[%emt 0:00:00]} 41. Bc6 {[%emt 0:00:00]} Rc8 {[%emt 0:00:00]} 42. Rd1 {[%emt 0:00:00]} 1-0